fUST/lending_fUST_20250603
["ID","MTS","AMOUNT","RATE_DAILY","PERIOD"]
[363899929,1748916638921,-440.0,0.00016986,2]
[363899931,1748916638931,-318.83011424,0.00016986,2]
[363899933,1748916638940,-440.0,0.00016986,2]
[363899935,1748916638950,-440.0,0.00016986,2]
[363899937,1748916638960,-440.0,0.00016986,2]
[363899939,1748916638972,-169.94204487,0.00016986,2]
[363899941,1748916638982,-426.97087463,0.00016986,2]
[363899943,1748916638991,-410.0,0.00016986,2]
[363899945,1748916639000,-410.0,0.00016986,2]
[363899947,1748916639010,-440.0,0.00016986,2]
[363899949,1748916639020,-440.0,0.00016986,2]
[363899951,1748916639029,-424.61467238,0.00016986,2]
[363899953,1748916639039,-440.0,0.00016986,2]
[363899955,1748916639049,-1325.68,0.00016986,2]
[363899957,1748916639059,-2686.58,0.00016986,2]
[363899959,1748916639069,-440.0,0.00016986,2]
[363899961,1748916639079,-1015.84,0.00016986,2]
[363899963,1748916639089,-440.0,0.00016986,2]
[363899965,1748916639099,-440.0,0.00016986,2]
[363899967,1748916639109,-2449.28,0.00016986,2]
[363899969,1748916639119,-1872.97,0.00016986,2]
[363899971,1748916639131,-3386.92,0.00016986,2]
[363899973,1748916639140,-1271.01,0.00016986,2]
[363899975,1748916639150,-903.01,0.00016986,2]
[363899978,1748916639163,-440.0,0.00016986,2]
[363899979,1748916639173,-440.0,0.00016986,2]
[363899981,1748916639183,-1195.46,0.00016986,2]
[363899983,1748916639193,-440.0,0.00016986,2]
[363899985,1748916639203,-440.0,0.00016986,2]
[363899987,1748916639212,-440.0,0.00016986,2]
[363899990,1748916639223,-440.0,0.00016986,2]
[363899992,1748916639233,-1421.7,0.00016986,2]
[363899994,1748916639244,-440.0,0.00016986,2]
[363899996,1748916639255,-500.0,0.00017091,2]
[363899998,1748916639265,-502.95528671,0.00017107,2]
[363900000,1748916639275,-500.0,0.00017107,2]
[363900002,1748916639284,-595.58464173,0.00017107,2]
[363900003,1748916639294,-500.16114159,0.00017107,2]
[363900006,1748916639304,-500.60057855,0.00017119,2]
[363900008,1748916639313,-2771.3004771,0.000172,2]
[363900009,1748916639328,-2771.30047706,0.000172,2]
[363900012,1748916639338,-316.06816235,0.00017259,2]
[363900014,1748916639347,-241.25926654,0.00017259,2]
[363900016,1748916639358,-440.0,0.00017259,2]
[363900018,1748916639367,-440.0,0.00017259,2]
[363900020,1748916639377,-410.0,0.00017259,2]
[363900022,1748916639388,-440.0,0.00017259,2]
[363900024,1748916639398,-410.0,0.00017259,2]
[363900026,1748916639408,-289.17,0.00017259,2]
[363900028,1748916639418,-400.16891728,0.00017259,2]
[363900030,1748916639428,-406.9651575,0.00017259,2]
[363900032,1748916639437,-440.0,0.00017259,2]
[363900034,1748916639447,-410.0,0.00017259,2]
[363900036,1748916639457,-440.0,0.00017259,2]
[363900038,1748916639467,-440.0,0.00017259,2]
[363900040,1748916639476,-410.0,0.00017259,2]
[363900042,1748916639486,-410.0,0.00017259,2]
[363900044,1748916639495,-440.0,0.00017259,2]
[363900046,1748916639505,-440.0,0.00017259,2]
[363900048,1748916639515,-495.21,0.00017259,2]
[363900050,1748916639525,-440.0,0.00017259,2]
[363900052,1748916639535,-2904.1,0.00017259,2]
[363900054,1748916639547,-376.11544116,0.00017259,2]
[363900056,1748916639557,-440.0,0.00017259,2]
[363900058,1748916639568,-669.46,0.00017259,2]
[363900060,1748916639577,-289.51514406,0.00017259,2]
[363900062,1748916639587,-815.71,0.00017259,2]
[363900064,1748916639597,-440.0,0.00017259,2]
[363900066,1748916639607,-440.0,0.00017259,2]
[363900068,1748916639618,-416.97292605,0.00017259,2]
[363900070,1748916639628,-444.55,0.00017259,2]
[363900072,1748916639639,-440.0,0.00017259,2]
[363900074,1748916639651,-408.49409667,0.00017259,2]
[363900076,1748916639662,-480.41,0.00017259,2]
[363900078,1748916639671,-440.0,0.00017259,2]
[363900081,1748916639681,-437.01982406,0.00017259,2]
[363900084,1748916639692,-581.03,0.00017259,2]
[363900086,1748916639704,-1121.23,0.00017259,2]
[363900088,1748916639714,-1411.27,0.00017259,2]
[363900090,1748916639724,-612.39,0.00017259,2]
[363900092,1748916639734,-440.0,0.00017259,2]
[363900094,1748916639744,-440.0,0.00017259,2]
[363900096,1748916639754,-360.0,0.00017259,2]
[363900098,1748916639764,-1298.78,0.00017259,2]
[363900100,1748916639774,-440.0,0.00017259,2]
[363900102,1748916639784,-1350.64,0.00017259,2]
[363900104,1748916639792,-440.0,0.00017259,2]
[363900106,1748916639802,-555.43,0.00017259,2]
[363900108,1748916639811,-440.0,0.00017259,2]
[363900110,1748916639820,-440.0,0.00017259,2]
[363900112,1748916639830,-1631.27,0.00017259,2]
[363900115,1748916639838,-440.0,0.00017259,2]
[363900117,1748916639847,-1281.77,0.00017259,2]
[363900119,1748916639857,-440.0,0.00017259,2]
[363900121,1748916639866,-501.2,0.00017259,2]
[363900123,1748916639876,-440.0,0.00017259,2]
[363900125,1748916639885,-440.0,0.00017259,2]
[363900127,1748916639894,-3244.02,0.00017259,2]
[363900129,1748916639902,-440.0,0.00017259,2]
[363900132,1748916639910,-337.79747105,0.0001726,2]
[363900134,1748916639920,-501.67205913,0.0001726,2]
[363900135,1748916639930,-440.0,0.0001726,2]
[363900136,1748916639940,-440.0,0.0001726,2]
[363900137,1748916639949,-400.09794815,0.0001726,2]
[363900138,1748916639959,-440.0,0.0001726,2]
[363900139,1748916639969,-410.0,0.0001726,2]
[363900140,1748916639979,-396.15880836,0.0001726,2]
[363900141,1748916639988,-440.0,0.0001726,2]
[363900142,1748916639997,-440.0,0.0001726,2]
[363900143,1748916640007,-440.0,0.0001726,2]
[363900144,1748916640016,-440.0,0.0001726,2]
[363900145,1748916640033,-440.0,0.0001726,2]
[363900146,1748916640042,-440.0,0.0001726,2]
[363900147,1748916640051,-440.0,0.0001726,2]
[363900149,1748916640061,-440.0,0.0001726,2]
[363900150,1748916640070,-1325.68,0.0001726,2]
[363900151,1748916640079,-2686.58,0.0001726,2]
[363900152,1748916640088,-458.76837359,0.0001726,2]
[363900154,1748916640095,-1015.84,0.0001726,2]
[363900156,1748916640104,-440.0,0.0001726,2]
[363900158,1748916640113,-440.0,0.0001726,2]
[363900160,1748916640123,-2449.28,0.0001726,2]
[363900162,1748916640132,-1872.97,0.0001726,2]
[363900164,1748916640142,-3386.92,0.0001726,2]
[363900166,1748916640152,-1271.01,0.0001726,2]
[363900168,1748916640166,-903.01,0.0001726,2]
[363900170,1748916640176,-440.0,0.0001726,2]
[363900172,1748916640185,-440.0,0.0001726,2]
[363900174,1748916640195,-1195.46,0.0001726,2]
[363900176,1748916640205,-440.0,0.0001726,2]
[363900178,1748916640214,-440.0,0.0001726,2]
[363900180,1748916640224,-440.0,0.0001726,2]
[363900182,1748916640236,-440.0,0.0001726,2]
[363900184,1748916640246,-1421.7,0.0001726,2]
[363900186,1748916640256,-440.0,0.0001726,2]
[363900188,1748916640266,-504.12253709,0.00017321,2]
[363900191,1748916640275,-508.9803067,0.00017321,2]
[363900193,1748916640285,-502.63621493,0.00017321,2]
[363900194,1748916640294,-503.20661114,0.00017321,2]
[363900197,1748916640304,-504.81077409,0.00017321,2]
[363900198,1748916640312,-1000.0,0.00017321,2]
[363900200,1748916640322,-1004.34099936,0.00017321,2]
[363900202,1748916640332,-858.18701935,0.00017365,2]
[363900205,1748916640342,-2836.3,0.00017383,2]
[363900207,1748916640352,-2836.3,0.00017383,2]
[363900210,1748916640362,-2771.30047706,0.00017383,2]
[363900211,1748916640371,-2592.98890641,0.00017401,2]
[363900213,1748916640383,-595.21809465,0.00017415,2]
[363900215,1748916640393,-500.87238023,0.00017423,2]
[363900217,1748916640402,-406.68873177,0.00017423,2]
[363900219,1748916640412,-500.0,0.00017423,2]
[363900221,1748916640424,-500.5326668,0.00017423,2]
[363900223,1748916640435,-322.24579073,0.00017423,2]
[363900225,1748916640445,-500.0,0.00017423,2]
[363900227,1748916640456,-501.07755876,0.00017429,2]
[363900229,1748916640466,-500.73978775,0.00017429,2]
[363900231,1748916640475,-500.58051588,0.00017429,2]
[363900233,1748916640485,-500.0,0.00017429,2]
[363900235,1748916640495,-502.55333064,0.00017429,2]
[363900237,1748916640505,-500.95700191,0.00017483,2]
[363900239,1748916640516,-500.0,0.00017483,2]
[363900241,1748916640525,-500.0,0.00017497,2]
[363900243,1748916640537,-500.0,0.00017497,2]
[363900245,1748916640546,-500.34826902,0.00017497,2]
[363900247,1748916640556,-500.0,0.00017497,2]
[363900249,1748916640566,-500.0,0.00017497,2]
[363900251,1748916640576,-502.54617503,0.00017497,2]
[363900253,1748916640587,-609.40000222,0.00017497,2]
[363900255,1748916640597,-500.0,0.00017497,2]
[363900257,1748916640607,-171.58346545,0.0001751,2]
[363900259,1748916640618,-440.0,0.00017533,2]
[363900261,1748916640628,-267.31337355,0.00017533,2]
[363900264,1748916640639,-313.29,0.00017533,2]
[363900267,1748916640648,-440.0,0.00017533,2]
[363900270,1748916640659,-400.0,0.00017533,2]
[363900272,1748916640670,-408.19750712,0.00017533,2]
[363900274,1748916640682,-440.0,0.00017533,2]
[363900277,1748916640702,-440.0,0.00017533,2]
[363900279,1748916640713,-495.21,0.00017533,2]
[363900281,1748916640723,-440.0,0.00017533,2]
[363900283,1748916640733,-2904.1,0.00017533,2]
[363900285,1748916640743,-425.79823769,0.00017533,2]
[363900287,1748916640752,-669.46,0.00017533,2]
[363900289,1748916640763,-815.71,0.00017533,2]
[363900291,1748916640775,-394.6117867,0.00017533,2]
[363900293,1748916640792,-440.0,0.00017533,2]
[363900295,1748916640802,-444.55,0.00017533,2]
[363900297,1748916640813,-440.0,0.00017533,2]
[363900299,1748916640823,-480.41,0.00017533,2]
[363900301,1748916640832,-440.0,0.00017533,2]
[363900303,1748916640842,-581.03,0.00017533,2]
[363900305,1748916640853,-1121.23,0.00017533,2]
[363900307,1748916640863,-1411.27,0.00017533,2]
[363900309,1748916640873,-612.39,0.00017533,2]
[363900311,1748916640883,-403.38524067,0.00017533,2]
[363900313,1748916640893,-400.32682135,0.00017533,2]
[363900316,1748916640904,-1298.78,0.00017533,2]
[363900318,1748916640914,-432.98337971,0.00017533,2]
[363900320,1748916640927,-1350.64,0.00017533,2]
[363900322,1748916640937,-440.0,0.00017533,2]
[363900324,1748916640947,-555.43,0.00017533,2]
[363900326,1748916640956,-440.0,0.00017533,2]
[363900328,1748916640966,-350.0,0.00017533,2]
[363900330,1748916640976,-849.04361077,0.00017533,2]
[363900406,1748916641740,-455.13851284,0.00016438,2]
[363900408,1748916641750,-782.22638923,0.00017533,2]
[363900410,1748916641760,-440.0,0.00017533,2]
[363900411,1748916641771,-1281.77,0.00017533,2]
[363900414,1748916641782,-431.60760141,0.00017533,2]
[363900416,1748916641792,-18.75115874,0.00017533,2]
[363900418,1748916641804,-482.44884126,0.00017533,2]
[363900420,1748916641814,-440.0,0.00017533,2]
[363900422,1748916641823,-440.0,0.00017533,2]
[363900424,1748916641834,-3244.02,0.00017533,2]
[363900426,1748916641843,-440.0,0.00017533,2]
[363900428,1748916641853,-440.0,0.00017534,2]
[363900430,1748916641863,-440.0,0.00017534,2]
[363900432,1748916641872,-440.0,0.00017534,2]
[363900434,1748916641882,-440.0,0.00017534,2]
[363900436,1748916641891,-440.0,0.00017534,2]
[363900438,1748916641901,-349.61774601,0.00017534,2]
[363900440,1748916641911,-440.0,0.00017534,2]
[363900442,1748916641923,-440.0,0.00017534,2]
[363900443,1748916641932,-440.0,0.00017534,2]
[363900445,1748916641942,-296.3998642,0.00017534,2]
[363900447,1748916641954,-143.6001358,0.00017534,2]
[363900449,1748916641964,-440.0,0.00017534,2]
[363900451,1748916641974,-1325.68,0.00017534,2]
[363900453,1748916641984,-1015.84,0.00017534,2]
[363900455,1748916641994,-440.0,0.00017534,2]
[363900457,1748916642004,-440.0,0.00017534,2]
[363900459,1748916642013,-141.6942522,0.00017534,2]
[363900461,1748916642026,-2307.5857478,0.00017534,2]
[363900464,1748916642037,-1002.49590296,0.00017534,2]
[363900466,1748916642049,-870.47409704,0.00017534,2]
[363900468,1748916642059,-3386.92,0.00017534,2]
[363900470,1748916642069,-1271.01,0.00017534,2]
[363900472,1748916642079,-903.01,0.00017534,2]
[363900474,1748916642088,-440.0,0.00017534,2]
[363900476,1748916642098,-440.0,0.00017534,2]
[363900478,1748916642108,-1195.46,0.00017534,2]
[363900480,1748916642118,-440.0,0.00017534,2]
[363900482,1748916642127,-440.0,0.00017534,2]
[363900484,1748916642136,-440.0,0.00017534,2]
[363900486,1748916642146,-440.0,0.00017534,2]
[363900488,1748916642157,-1421.7,0.00017534,2]
[363900490,1748916642171,-440.0,0.00017534,2]
[363900492,1748916642181,-575.81380652,0.00017583,2]
[363900494,1748916642191,-2771.30047706,0.00017624,2]
[363900496,1748916642200,-1000.0,0.00017639,2]
[363900498,1748916642211,-1000.0,0.00017655,2]
[363900500,1748916642221,-500.0,0.00017771,2]
[363900502,1748916642231,-2000.0,0.000178,2]
[363900504,1748916642242,-440.0,0.00017807,2]
[363900506,1748916642252,-195.05356153,0.00017807,2]
[363900508,1748916642263,-440.0,0.00017807,2]
[363900510,1748916642273,-440.0,0.00017807,2]
[363900512,1748916642283,-495.21,0.00017807,2]
[363900514,1748916642292,-440.0,0.00017807,2]
[363900516,1748916642303,-2904.1,0.00017807,2]
[363900518,1748916642314,-669.46,0.00017807,2]
[363900520,1748916642324,-815.71,0.00017807,2]
[363900522,1748916642334,-440.0,0.00017807,2]
[363900524,1748916642343,-440.0,0.00017807,2]
[363900526,1748916642353,-480.41,0.00017807,2]
[363900528,1748916642362,-440.0,0.00017807,2]
[363900530,1748916642371,-581.03,0.00017807,2]
[363900532,1748916642382,-1121.23,0.00017807,2]
[363900534,1748916642392,-1411.27,0.00017807,2]
[363900536,1748916642403,-45.41312531,0.00017807,2]
[363900547,1748916642518,-566.97687469,0.00017807,2]
[363900549,1748916642528,-1298.78,0.00017807,2]
[363900551,1748916642538,-730.2431253,0.00017807,2]
[363900557,1748916642586,-620.3968747,0.00017807,2]
[363900559,1748916642597,-502.28930318,0.00017807,2]
[363900561,1748916642607,-555.43,0.00017807,2]
[363900562,1748916642617,-440.0,0.00017807,2]
[363900564,1748916642628,-1631.27,0.00017807,2]
[363900567,1748916642642,-440.0,0.00017807,2]
[363900569,1748916642653,-1281.77,0.00017807,2]
[363900571,1748916642664,-501.2,0.00017807,2]
[363900572,1748916642677,-440.0,0.00017807,2]
[363900574,1748916642687,-440.0,0.00017807,2]
[363900576,1748916642697,-3244.02,0.00017807,2]
[363900577,1748916642707,-440.0,0.00017807,2]
[363900579,1748916642715,-350.0,0.00017808,2]
[363900580,1748916642725,-440.0,0.00017808,2]
[363900583,1748916642734,-440.0,0.00017808,2]
[363900584,1748916642744,-440.0,0.00017808,2]
[363900586,1748916642755,-440.0,0.00017808,2]
[363900589,1748916642764,-440.0,0.00017808,2]
[363900592,1748916642774,-440.0,0.00017808,2]
[363900595,1748916642783,-320.95085528,0.00017808,2]
[363900597,1748916642792,-440.0,0.00017808,2]
[363900600,1748916642802,-440.0,0.00017808,2]
[363900602,1748916642812,-1325.68,0.00017808,2]
[363900604,1748916642822,-1015.84,0.00017808,2]
[363900606,1748916642831,-440.0,0.00017808,2]
[363900608,1748916642841,-440.0,0.00017808,2]
[363900610,1748916642851,-2449.28,0.00017808,2]
[363900612,1748916642861,-1872.97,0.00017808,2]
[363900614,1748916642871,-3386.92,0.00017808,2]
[363900616,1748916642880,-1271.01,0.00017808,2]
[363900618,1748916642889,-903.01,0.00017808,2]
[363900621,1748916642899,-440.0,0.00017808,2]
[363900623,1748916642908,-440.0,0.00017808,2]
[363900625,1748916642920,-1195.46,0.00017808,2]
[363900627,1748916642930,-174.74604294,0.00017808,2]
[363900629,1748916642940,-440.0,0.00017808,2]
[363900631,1748916642950,-440.0,0.00017808,2]
[363900633,1748916642959,-440.0,0.00017808,2]
[363900635,1748916642969,-1421.7,0.00017808,2]
[363900637,1748916642978,-440.0,0.00017808,2]
[363900640,1748916642988,-553.26210256,0.00017825,2]
[363900642,1748916642998,-2771.30047706,0.00017866,2]
[363900644,1748916643008,-1022.35728032,0.00017868,2]
[363900646,1748916643018,-2444.26857088,0.00017906,2]
[363900648,1748916643028,-420.0,0.00017963,2]
[363900650,1748916643038,-501.86867376,0.00017971,2]
[363900652,1748916643047,-510.89426034,0.00017971,2]
[363900654,1748916643057,-1000.0,0.00017977,2]
[363900656,1748916643067,-208.6,0.00018,2]
[363900658,1748916643077,-500.0,0.00018031,2]
[363900660,1748916643087,-1000.0,0.00018045,2]
[363900662,1748916643097,-1008.12191378,0.00018045,2]
[363900664,1748916643107,-1002.35923797,0.00018045,2]
[363900666,1748916643117,-1000.0,0.00018045,2]
[363900668,1748916643127,-507.80432617,0.00018045,2]
[363900670,1748916643137,-1000.0,0.0001806,7]
[363900672,1748916643146,-1000.0,0.0001806,7]
[363900674,1748916643160,-1000.0,0.0001806,2]
[363900676,1748916643170,-1000.0,0.0001806,2]
[363900678,1748916643178,-2651.04,0.00018071,3]
[363900680,1748916643188,-1502.26,0.00018071,3]
[363900682,1748916643198,-751.14,0.00018071,3]
[363900684,1748916643207,-375.56,0.00018071,3]
[363900686,1748916643216,-161.62951458,0.00018081,2]
[363900689,1748916643225,-440.0,0.00018081,2]
[363900692,1748916643236,-283.9613173,0.00018081,2]
[363900695,1748916643246,-440.0,0.00018081,2]
[363900697,1748916643256,-495.21,0.00018081,2]
[363900699,1748916643265,-440.0,0.00018081,2]
[363900701,1748916643275,-2904.1,0.00018081,2]
[363900703,1748916643284,-669.46,0.00018081,2]
[363900705,1748916643294,-815.71,0.00018081,2]
[363900707,1748916643303,-440.0,0.00018081,2]
[363900709,1748916643313,-440.0,0.00018081,2]
[363900711,1748916643322,-480.41,0.00018081,2]
[363900713,1748916643331,-440.0,0.00018081,2]
[363900715,1748916643341,-581.03,0.00018081,2]
[363900717,1748916643351,-1121.23,0.00018081,2]
[363900719,1748916643360,-1411.27,0.00018081,2]
[363900721,1748916643369,-612.39,0.00018081,2]
[363900723,1748916643379,-1298.78,0.00018081,2]
[363900727,1748916643388,-1350.64,0.00018081,2]
[363900729,1748916643397,-555.43,0.00018081,2]
[363900731,1748916643407,-440.0,0.00018081,2]
[363900733,1748916643416,-1631.27,0.00018081,2]
[363900735,1748916643427,-440.0,0.00018081,2]
[363900737,1748916643437,-1281.77,0.00018081,2]
[363900739,1748916643446,-501.2,0.00018081,2]
[363900741,1748916643456,-440.0,0.00018081,2]
[363900743,1748916643466,-440.0,0.00018081,2]
[363900745,1748916643476,-3244.02,0.00018081,2]
[363900747,1748916643485,-440.0,0.00018081,2]
[363900749,1748916643494,-440.0,0.00018082,2]
[363900751,1748916643504,-440.0,0.00018082,2]
[363900753,1748916643513,-440.0,0.00018082,2]
[363900755,1748916643523,-440.0,0.00018082,2]
[363900757,1748916643533,-440.0,0.00018082,2]
[363900759,1748916643543,-440.0,0.00018082,2]
[363900761,1748916643553,-440.0,0.00018082,2]
[363900763,1748916643563,-440.0,0.00018082,2]
[363900765,1748916643572,-1325.68,0.00018082,2]
[363900767,1748916643583,-1015.84,0.00018082,2]
[363900769,1748916643593,-440.0,0.00018082,2]
[363900771,1748916643602,-440.0,0.00018082,2]
[363900773,1748916643613,-2449.28,0.00018082,2]
[363900775,1748916643622,-1872.97,0.00018082,2]
[363900777,1748916643631,-3386.92,0.00018082,2]
[363900779,1748916643640,-1271.01,0.00018082,2]
[363900781,1748916643650,-903.01,0.00018082,2]
[363900782,1748916643659,-440.0,0.00018082,2]
[363900785,1748916643670,-440.0,0.00018082,2]
[363900787,1748916643680,-1195.46,0.00018082,2]
[363900789,1748916643690,-440.0,0.00018082,2]
[363900791,1748916643699,-440.0,0.00018082,2]
[363900793,1748916643709,-217.06176856,0.00018082,2]
[363900795,1748916643718,-1421.7,0.00018082,2]
[363900797,1748916643728,-440.0,0.00018082,2]
[363900799,1748916643737,-2771.30047706,0.00018107,2]
[363900801,1748916643747,-3765.91,0.00018142,2]
[363900803,1748916643757,-1012.12893711,0.00018187,2]
[363900805,1748916643767,-2592.98890641,0.00018191,2]
[363900807,1748916643776,-364.95672582,0.00018203,2]
[363900809,1748916643786,-1000.0,0.00018319,2]
[363900811,1748916643795,-2771.30047706,0.00018348,2]
[363900813,1748916643805,-440.0,0.00018355,2]
[363900815,1748916643814,-440.0,0.00018355,2]
[363900817,1748916643826,-495.21,0.00018355,2]
[363900819,1748916643835,-440.0,0.00018355,2]
[363900821,1748916643845,-2904.1,0.00018355,2]
[363900823,1748916643855,-669.46,0.00018355,2]
[363900825,1748916643864,-815.71,0.00018355,2]
[363900827,1748916643874,-440.0,0.00018355,2]
[363900829,1748916643883,-440.0,0.00018355,2]
[363900831,1748916643894,-480.41,0.00018355,2]
[363900833,1748916643903,-440.0,0.00018355,2]
[363900835,1748916643913,-581.03,0.00018355,2]
[363900838,1748916643926,-1121.23,0.00018355,2]
[363900840,1748916643935,-1411.27,0.00018355,2]
[363900842,1748916643945,-612.39,0.00018355,2]
[363900844,1748916643955,-1298.78,0.00018355,2]
[363900846,1748916643964,-1350.64,0.00018355,2]
[363900848,1748916643974,-555.43,0.00018355,2]
[363900850,1748916643984,-440.0,0.00018355,2]
[363900852,1748916643994,-1631.27,0.00018355,2]
[363900854,1748916644004,-440.0,0.00018355,2]
[363900856,1748916644014,-1281.77,0.00018355,2]
[363900858,1748916644024,-501.2,0.00018355,2]
[363900860,1748916644034,-440.0,0.00018355,2]
[363900862,1748916644044,-440.0,0.00018355,2]
[363900864,1748916644053,-3244.02,0.00018355,2]
[363900866,1748916644062,-440.0,0.00018355,2]
[363900880,1748916644184,-440.0,0.00018356,2]
[363900882,1748916644194,-440.0,0.00018356,2]
[363900884,1748916644206,-240.0,0.00018356,2]
[363900886,1748916644216,-440.0,0.00018356,2]
[363900888,1748916644225,-440.0,0.00018356,2]
[363900890,1748916644236,-440.0,0.00018356,2]
[363900892,1748916644246,-272.24322947,0.00018356,2]
[363900894,1748916644256,-440.0,0.00018356,2]
[363900896,1748916644266,-1325.68,0.00018356,2]
[363900898,1748916644276,-1015.84,0.00018356,2]
[363900900,1748916644285,-235.32988689,0.00018356,2]
[363900902,1748916644295,-440.0,0.00018356,2]
[363900904,1748916644304,-2449.28,0.00018356,2]
[363900906,1748916644313,-1872.97,0.00018356,2]
[363900908,1748916644322,-3386.92,0.00018356,2]
[363900910,1748916644332,-1271.01,0.00018356,2]
[363900912,1748916644342,-903.01,0.00018356,2]
[363900914,1748916644351,-440.0,0.00018356,2]
[363900916,1748916644361,-440.0,0.00018356,2]
[363900918,1748916644371,-1195.46,0.00018356,2]
[363900920,1748916644381,-440.0,0.00018356,2]
[363900922,1748916644390,-440.0,0.00018356,2]
[363900924,1748916644400,-1421.7,0.00018356,2]
[363900926,1748916644409,-440.0,0.00018356,2]
[363900928,1748916644419,-318.1328912,0.00018356,2]
[363900930,1748916644427,-333.9734973,0.00018356,2]
[363900932,1748916644436,-842.5625,0.00018404,2]
[363900934,1748916644446,-229.42821335,0.00018404,2]
[363900936,1748916644455,-160.0,0.00018404,2]
[363900938,1748916644465,-423.63107087,0.00018404,2]
[363900940,1748916644474,-160.0,0.00018404,2]
[363900942,1748916644484,-160.0,0.00018404,2]
[363900944,1748916644495,-12670.76136593,0.00018405,2]
[363900946,1748916644505,-160.0,0.00018405,2]
[363900948,1748916644514,-212.86879254,0.00018405,2]
[363900950,1748916644524,-160.0,0.00018405,2]
[363900952,1748916644534,-160.0,0.00018405,2]
[363900954,1748916644544,-595.21809465,0.00018492,2]
[363900956,1748916644553,-504.90978063,0.00018525,2]
[363900958,1748916644563,-2771.30047706,0.0001859,2]
[363900960,1748916644572,-1520.41100821,0.00018593,2]
[363900962,1748916644582,-1006.7984358,0.00018593,2]
[363900964,1748916644591,-440.0,0.00018629,2]
[363900966,1748916644603,-440.0,0.00018629,2]
[363900968,1748916644613,-495.21,0.00018629,2]
[363900969,1748916644623,-440.0,0.00018629,2]
[363900972,1748916644633,-2904.1,0.00018629,2]
[363900974,1748916644643,-669.46,0.00018629,2]
[363900976,1748916644652,-815.71,0.00018629,2]
[363900978,1748916644661,-440.0,0.00018629,2]
[363900980,1748916644672,-440.0,0.00018629,2]
[363900982,1748916644682,-480.41,0.00018629,2]
[363900984,1748916644691,-440.0,0.00018629,2]
[363900986,1748916644700,-581.03,0.00018629,2]
[363900988,1748916644709,-1121.23,0.00018629,2]
[363900990,1748916644719,-1411.27,0.00018629,2]
[363900992,1748916644727,-612.39,0.00018629,2]
[363900994,1748916644738,-1298.78,0.00018629,2]
[363900996,1748916644748,-1350.64,0.00018629,2]
[363900998,1748916644757,-555.43,0.00018629,2]
[363901000,1748916644767,-440.0,0.00018629,2]
[363901002,1748916644776,-1631.27,0.00018629,2]
[363901004,1748916644785,-440.0,0.00018629,2]
[363901006,1748916644794,-1281.77,0.00018629,2]
[363901008,1748916644803,-501.2,0.00018629,2]
[363901010,1748916644813,-440.0,0.00018629,2]
[363901012,1748916644822,-440.0,0.00018629,2]
[363901014,1748916644831,-3244.02,0.00018629,2]
[363901016,1748916644841,-440.0,0.00018629,2]
[363901018,1748916644850,-440.0,0.0001863,2]
[363901020,1748916644859,-440.0,0.0001863,2]
[363901022,1748916644869,-440.0,0.0001863,2]
[363901024,1748916644878,-440.0,0.0001863,2]
[363901026,1748916644887,-440.0,0.0001863,2]
[363901028,1748916644897,-440.0,0.0001863,2]
[363901030,1748916644907,-1325.68,0.0001863,2]